Cogmind - Beta 16 --- EXPLORER MODE // 2026.01.07 @ 17:10:24 Player: K.K.Y. Result: Destroyed by Y-54 Guardian with Flak Gun Performance ------------- Evolutions (0) 0 Regions Visited (4) 800 Robots Destroyed (52) 260 Value Destroyed (1382) 1382 Prototype IDs (12) 240 Alien Tech Used (0) 0 Bonus (-227) -227 TOTAL SCORE: 2455 Bonus ------- Friendly Fire -227 Cogmind --------- Core Integrity 0/250 Matter 300/300 Energy 20/265 System Corruption 0% Temperature Cool (25) Movement Treading (660) Ox5 Location -7/Recycling Parts ------- > --- POWER (1+1) ------ Improved Ion Engine (+) > --- PROPULSION (2) --- Spiked Treads Spiked Treads > --- UTILITY (3) ------ Improved Heat Sink Humpback > --- WEAPON (2) ------- (None) > --- INVENTORY (35) --- Light Treads Spiked Treads Large Storage Unit High-capacity Storage Unit Structural Scanner Experimental Sensor Array Light Armor Plating Light Armor Plating Light Armor Plating Heavy Riot Gun Makeshift Laser Beamcaster Slug Cannon Mining Laser Multitool SUBCON Basin (Full) Peak State ------------ > --- POWER ------------ Improved Ion Engine Light Angular Momentum Engine > --- PROPULSION ------- Spiked Treads Spiked Treads > --- UTILITY ---------- Improved Heat Sink Humpback > --- WEAPON ----------- Powered Cannon > --- INVENTORY -------- Light Treads High-capacity Storage Unit Structural Scanner Experimental Sensor Array Light Armor Plating Light Armor Plating Light Armor Plating Heavy Riot Gun Makeshift Laser Beamcaster Slug Cannon Mining Laser Multitool SUBCON Basin [Rating: 51] Favorites ----------- Power Light Angular Momentum Engine Engine Light Angular Momentum Engine Propulsion Spiked Treads Treads Spiked Treads Utility Improved Heat Sink Device Improved Heat Sink Storage Large Storage Unit Protection Light Armor Plating Weapon Powered Cannon Energy Gun Medium Laser Energy Cannon Powered Cannon Build | -11 -10 -10 -10 -7 ------- Run | Yrd Mat Min Sub Rec Slots Evolved 1 | . 1 . . . Power . | . . . . . Propulsion . | . . . . . Utility 1 | . 1 . . . Weapon . | . . . . . Parts Attached 27 | 6 5 5 11 . Power 3 | 1 . 1 1 . Engine 3 | 1 . 1 1 . Core . | . . . . . Reactor . | . . . . . Propulsion 10 | 2 2 . 6 . Treads 10 | 2 2 . 6 . Leg . | . . . . . Wheel . | . . . . . Hover . | . . . . . Flight . | . . . . . Utility 9 | 1 3 2 3 . Device 3 | . 1 1 1 . Storage 4 | . 1 1 2 . Processor . | . . . . . Hackware . | . . . . . Protection 2 | 1 1 . . . Artifact . | . . . . . Weapon 5 | 2 . 2 1 . Energy Gun 4 | 2 . 2 . . Energy Cannon 1 | . . . 1 . Ballistic Gun . | . . . . . Ballistic Cannon . | . . . . . Launcher . | . . . . . Special Weapon . | . . . . . Impact Weapon . | . . . . . Slashing Weapon . | . . . . . Piercing Weapon . | . . . . . Special Melee Weapon . | . . . . . Unidentified Prototypes . | . . . . . Parts Lost 4 | . . . 2 2 Power 1 | . . . . 1 Propulsion 1 | . . . 1 . Utility 1 | . . . 1 . Weapon 1 | . . . . 1 Highest Loss Streak 2 | . . . 1 2 To Critical Strikes . | . . . . . Average Backups 12 | 1 4 9 14 15 Power . | . . . . . Propulsion 1 | . . 1 2 2 Utility 6 | . 3 6 7 7 Weapon 3 | . 1 1 4 5 Tool/Special . | . . . . . Unused Backups 13 | 1 . 2 2 8 Power 2 | 1 . 1 . . Propulsion 2 | . . . 2 . Utility 3 | . . . . 3 Weapon 5 | . . 1 . 4 Tool/Special 1 | . . . . 1 Average Slot Usage (%) 82 | . 77 100 79 73 Engine 18 | . 12 12 19 18 Treads 21 | . 22 25 20 22 Device 14 | . 1 17 15 11 Storage 10 | . . 9 11 11 Protection 2 | . 15 10 . . Energy Gun 7 | . 25 25 3 . Energy Cannon 7 | . . . 9 11 Peak Build Rating 51 | 6 8 21 51 51 Average Rating 33 | 5 6 13 39 49 On Entrance 17 | . 6 8 21 51 Avg Prop Armor Cover (%) . | . . . . . Naked Turns . | . . . . . Heaviest Build 226 | 11 31 39 226 226 Greatest Support 40 | 40 40 40 40 40 Greatest Overweight (x) 5 | . . . 5 5 Average Overweight (x) 1 | . . . 1 5 Largest Inventory Capacity 35 | 5 15 15 35 35 Average Capacity 21 | 5 5 10 25 35 Most Carried 30 | 5 5 13 30 30 Average Carried 18 | 1 4 9 21 30 Final Capacity 35 | 5 5 15 35 35 Final Carried 30 | 2 5 12 30 30 Class Distribution -------------------- 43% | Hacker-Mutant 41% | Hauler-Mutant 15% | Scavenger-Mutant Dominant Class ---------------- Hacker-Mutant | -10/Materials Hacker-Mutant | -10/Mines Hauler-Mutant | -10/Subcaves Hauler-Mutant | -7/Recycling Resources | -11 -10 -10 -10 -7 ----------- Run | Yrd Mat Min Sub Rec Matter Collected 530 | 260 60 90 120 . Remotely . | . . . . . Salvage Created 1903 | 194 364 311 1034 . Parts 96 | 11 16 12 57 . Haulers Intercepted 1 | . 1 . . . Recyclers Shooed 3 | 1 2 . . . Parts Field Recycled . | . . . . . Retrieved Matter . | . . . . . Parts Self-Destructed . | . . . . . Prevented . | . . . . . Parts Restored . | . . . . . Kills | -11 -10 -10 -10 -7 ------- Run | Yrd Mat Min Sub Rec Combat Hostiles Destroyed 36 | . 5 7 24 . Guns 19 | . 4 7 8 . Cannons 14 | . . . 14 . Classes Destroyed 11 | 2 5 . 4 . Builder 1 | . 1 . . . Tunneler 6 | 6 . . . . Hauler 1 | . 1 . . . Recycler 2 | 1 1 . . . Turret 2 | . . . 2 . Watcher 3 | . 3 . . . Swarmer 8 | . 2 2 4 . Grunt 9 | . 3 5 1 . Sentry 1 | . . . 1 . Artisan 1 | . . . 1 . Subdweller 18 | . . . 18 . Thug 1 | . . 1 . . Best Kill Streak 6 | 4 3 2 6 . Combat Bots Only 4 | . 2 2 4 . Max Kills in Single Turn 2 | 1 1 1 2 . Gunslinging 1 | . . . 1 . Exploded . | . . . . . Melee . | . . . . . Uniques/NPCs Destroyed . | . . . . . Combat | -11 -10 -10 -10 -7 -------- Run | Yrd Mat Min Sub Rec Hostile Shots Fired 203 | . 18 21 92 72 Missed 71 | . 5 8 38 20 Hits 132 | . 13 13 54 52 Projectile 132 | . 13 13 54 52 AOE 2 | . . . 2 . Critical Strikes 1 | . . 1 . . Damage Taken 1035 | . 97 110 602 226 Core 252 | . 37 13 160 42 Absorbed by Shields . | . . . . . Ignored by Resistances 638 | . 60 67 349 162 Core Remaining (%) 100 | 100 . . . . Volleys Fired 302 | 18 30 21 228 5 Largest 2 | 2 2 2 2 1 Hottest 140 | 90 90 125 140 120 Shots Fired 384 | 29 60 42 248 5 Gun 175 | 29 60 42 44 . Cannon 209 | . . . 204 5 Launcher . | . . . . . Special . | . . . . . Kinetic . | . . . . . Thermal 384 | 29 60 42 248 5 Explosive . | . . . . . Electromagnetic . | . . . . . Robot Hit Streak 39 | 14 34 22 34 39 Robot Miss Streak 2 | 1 2 1 2 . Penetration Max . | . . . . . Secondary Targets 2 | . . . 2 . Max Gunslinging Chain 1 | . . . 1 . Shots Hit Robots 189 | 24 52 37 71 5 Core Hits 73 | 8 17 17 31 . Critical Kills 2 | . . . 2 . Critical Parts Destroyed . | . . . . . Critical Strikes 9 | 1 1 2 5 . Burn 7 | 1 1 2 3 . Meltdown 2 | . . . 2 . Melee Attacks . | . . . . . Impact . | . . . . . Slashing . | . . . . . Piercing . | . . . . . Sneak Attacks . | . . . . . Combat Hostiles . | . . . . . Follow-up Attacks . | . . . . . Damage Inflicted 4537 | 289 649 495 2705 399 Guns 2038 | 289 649 495 605 . Cannons 2499 | . . . 2100 399 Explosions . | . . . . . Melee . | . . . . . Ramming . | . . . . . Kinetic . | . . . . . Thermal 4537 | 289 649 495 2705 399 Explosive . | . . . . . Electromagnetic . | . . . . . Impact . | . . . . . Slashing . | . . . . . Piercing . | . . . . . Highest Corruption . | . . . . . Average Corruption . | . . . . . Corruption Purged . | . . . . . Corruption Blocked . | . . . . . Overload Shots 32 | . . . 29 3 Effects 2 | . . . 2 . Energy Bleed 1 | . . . 1 . Heat Surge 1 | . . . 1 . Overflow Damage 58 | . . . . 58 Projectiles 58 | . . . . 58 Explosions . | . . . . . Melee . | . . . . . Knockbacks . | . . . . . Impact . | . . . . . Kinetic . | . . . . . Secondary . | . . . . . Self-Inflicted Damage . | . . . . . Shots . | . . . . . Rammed . | . . . . . Targets Rammed . | . . . . . Kicked . | . . . . . Crushed . | . . . . . Highest Temperature 423 | 149 230 423 322 165 Average Temperature 89 | 55 81 128 78 86 Received Heat Transfer 504 | . 78 108 192 126 Effects 1 | . . 1 . . Energy Bleed 1 | . . 1 . . Siege Activations . | . . . . . Martial Activations . | . . . . . Shielding Activations . | . . . . . Robots Disrupted . | . . . . . Combat Hostiles . | . . . . . Robots Corrupted . | . . . . . Combat Hostiles . | . . . . . Parts Fried . | . . . . . Impact Corruptions . | . . . . . Robots Melted 3 | . 1 . 2 . Combat Hostiles 3 | . 1 . 2 . Parts Melted 15 | 4 1 2 8 . Heat Transferred 5442 | 878 1784 1337 1443 . Parts Sabotaged . | . . . . . Parts Stolen . | . . . . . Parts Stripped . | . . . . . Power Chain Reactions . | . . . . . Alert | -11 -10 -10 -10 -7 ------- Run | Yrd Mat Min Sub Rec Maximum Alert Level . | . . . . . Low Security (%) 100 | 100 100 100 . 100 Level 1 . | . . . . . Level 2 . | . . . . . Level 3 . | . . . . . Level 4 . | . . . . . Level 5 . | . . . . . High Security . | . . . . . Max Security . | . . . . . Peak Influence 67 | 10 67 54 . . Initial 2 | . 2 . . . Average 5 | 1 10 3 . . Influence Increases 587 | 35 178 184 190 . Destroy 0b10 Robot/C 400 | . 100 140 160 . Destroy 0b10 Robot/NC 65 | 35 30 . . . Destroy Leader 68 | . 28 40 . . Successful Hack 20 | . 20 . . . Disable Machine 4 | . . 4 . . Lose Combat Pursuer 30 | . . . 30 . Influence Decreases 587 | 30 183 184 190 . Entered New Map 3 | . 3 . . . Time Decay 574 | 30 180 184 180 . Lost Part 10 | . . . 10 . Squads Dispatched . | . . . . . Investigation . | . . . . . Extermination . | . . . . . Reinforcement . | . . . . . Assault . | . . . . . Garrison . | . . . . . Intercept . | . . . . . Searches Triggered . | . . . . . Construction Impeded . | . . . . . Haulers Reinforced . | . . . . . Active Scanning Responses . | . . . . . Cargo Convoy Interrupts . | . . . . . Stealth | -11 -10 -10 -10 -7 --------- Run | Yrd Mat Min Sub Rec Distress Signals 1 | . 1 . . . Communications Jammed . | . . . . . Distress Signals . | . . . . . Times Spotted 43 | . 8 7 27 1 Peak Tracking Total 6 | . 3 2 6 1 Tactical Retreats 1 | . . . 1 . Traps | -11 -10 -10 -10 -7 ------- Run | Yrd Mat Min Sub Rec Traps Triggered 3 | . 2 . 1 . Indirectly . | . . . . . Trap Hack Attempts . | . . . . . Triggered . | . . . . . Disarmed . | . . . . . Reprogrammed . | . . . . . Reused . | . . . . . Traps Extracted . | . . . . . Installed . | . . . . . Triggered . | . . . . . Machines | -11 -10 -10 -10 -7 ---------- Run | Yrd Mat Min Sub Rec Machines Disabled 4 | . . 1 3 . Max in Single Turn 1 | . . 1 1 . Machines Repaired . | . . . . . Machines Dismantled . | . . . . . Machines Sabotaged . | . . . . . Overloaded Fab Kills . | . . . . . Hacking | -11 -10 -10 -10 -7 --------- Run | Yrd Mat Min Sub Rec Machines Accessed 3 | . 1 . 2 . Terminals 1 | . 1 . . . Fabricators . | . . . . . Repair Stations . | . . . . . Recycling Units . | . . . . . Scanalyzers . | . . . . . Garrison Access . | . . . . . Total Hacks 5 | . 2 . 3 . Successful 5 | . 2 . 3 . Failed . | . . . . . Catastrophic . | . . . . . Database Lockouts . | . . . . . Manual 1 | . 1 . . . Terminals 2 | . 2 . . . Fabricators . | . . . . . Repair Stations . | . . . . . Recycling Units . | . . . . . Scanalyzers . | . . . . . Garrison Access . | . . . . . Terminal Hacks 4 | . 1 . 3 . Record 1 | . . . 1 . Robot Analysis 1 | . 1 . . . Proto ID Catalog 1 | . . . 1 . Release Object 1 | . . . 1 . Fabricator Hacks . | . . . . . Repair Station Hacks . | . . . . . Recycling Unit Hacks . | . . . . . Scanalyzer . | . . . . . Garrison Access Hacks . | . . . . . Unauthorized Hacks 1 | . 1 . . . Terminals 1 | . 1 . . . Botnet 1 | . 1 . . . Fabricators . | . . . . . Repair Stations . | . . . . . Recycling Units . | . . . . . Scanalyzers . | . . . . . Garrison Access . | . . . . . Data Cores Recovered . | . . . . . Used . | . . . . . Hacking Detections 1 | . 1 . . . Full Trace Events . | . . . . . Feedback Events . | . . . . . Feedback Blocked . | . . . . . Robot Schematics Acquired . | . . . . . Robots Built . | . . . . . Authchips . | . . . . . Time . | . . . . . Total Robot Build Rating . | . . . . . Part Schematics Acquired . | . . . . . Parts Built . | . . . . . Authchips . | . . . . . Time . | . . . . . Total Part Build Rating . | . . . . . Part Studies Acquired . | . . . . . Parts Repaired . | . . . . . Time . | . . . . . Parts Recycled . | . . . . . Recycled Matter . | . . . . . Retrieved Matter . | . . . . . Retrieved Components . | . . . . . Parts Scanalyzed . | . . . . . Part Schematics Acquired . | . . . . . Parts Damaged . | . . . . . Bothacking | -11 -10 -10 -10 -7 ------------ Run | Yrd Mat Min Sub Rec Used RIF Installer . | . . . . . Robots Hacked . | . . . . . Non-combat . | . . . . . Combat . | . . . . . Robot Hacks Applied . | . . . . . Relay Couplers Released . | . . . . . Fabnet Peak Effective % . | . . . . . Robots Rewired . | . . . . . Allies Hacked . | . . . . . Hacks Repelled . | . . . . . Allies | -11 -10 -10 -10 -7 -------- Run | Yrd Mat Min Sub Rec Total Allies . | . . . . . Largest Group . | . . . . . Highest-Rated Group . | . . . . . Highest-Rated Ally . | . . . . . Total Orders . | . . . . . Ally Attacks . | . . . . . Total Damage . | . . . . . Kills . | . . . . . Allies Corrupted . | . . . . . Allies Melted . | . . . . . Intel | -11 -10 -10 -10 -7 ------- Run | Yrd Mat Min Sub Rec Active Infowar (turns) 4722 | . 98 1383 3241 . Sensors 3070 | . 98 1383 1589 . Structural 1652 | . . . 1652 . Robot Analysis Total 1 | . 1 . . . Derelict Logs Recovered 2 | . . . 2 . Drone Launches . | . . . . . Drone Recoveries . | . . . . . Exploration | -11 -10 -10 -10 -7 ------------- Run | Yrd Mat Min Sub Rec Turns Passed 11022 | 216 712 1383 8621 90 Spaces Moved 3505 | 76 367 788 2263 11 Core 26 | 26 . . . . Treads 3479 | 50 367 788 2263 11 Legs . | . . . . . Wheels . | . . . . . Hover . | . . . . . Flight . | . . . . . Fastest Speed 50 | 50 160 160 160 660 Average Speed 279 | 122 160 160 343 660 Slowest Speed 660 | 160 160 160 660 660 Overloaded Moves . | . . . . . Propulsion Burnouts . | . . . . . Robots Hopped . | . . . . . Potential Cave-ins 14 | . . . 14 . Cave-ins Triggered . | . . . . . Exploration Rate (%) 53 | 4 64 99 95 6 Regions Visited 4 Branch Regions 3 Pre-discovered Areas 1 | . . . 1 . Known Exits Taken 4 | 1 1 1 1 . Unknown Exits Taken . | . . . . . Scrap Searched 18 | . . 1 17 . Spaces Dug 120 | . . . 120 . Terrain Destroyed 144 | . . . 144 . Melee . | . . . . . Projectile 144 | . . . 144 . AOE . | . . . . . Terrain Rammed . | . . . . . Walls Destroyed . | . . . . . Machines Disabled . | . . . . . Actions | -11 -10 -10 -10 -7 --------- Run | Yrd Mat Min Sub Rec Total 4405 | 170 430 869 2911 25 Wait 497 | 62 21 38 367 9 Move 3501 | 75 366 787 2262 11 Hop . | . . . . . Pick Up 46 | 8 3 11 24 . Fast Attach 9 | 1 6 . 2 . Attach 9 | 5 1 . 3 . Detach 1 | . 1 . . . Swap 15 | . 1 7 7 . Drop 25 | 1 1 5 18 . Fire 302 | 18 30 21 228 5 Melee . | . . . . . Ram . | . . . . . Kick . | . . . . . Crush . | . . . . . Escape Stasis . | . . . . . Rewire . | . . . . . Trap . | . . . . . Miscellaneous . | . . . . . Route ------- -11/Scrapyard -10/Materials (discovered 2 exits: *Mat / *Min) -10/Mines (discovered 3 exits: *Mat x2 / *Sub) -10/Subcaves (discovered 3 exits: *Mat x2 / *Rec) -7/Recycling History --------- Turn | Location | Event 12 | -11/Scrapyard | Identified exit to Materials 12 | -11/Scrapyard | Discovered exit to Materials (range 15) 217 | -11/Scrapyard | Entered Materials 217 | -10/Materials | Evolved 1 slot: Utility x1 312 | -10/Materials | Build established: Hacker-Mutant 610 | -10/Materials | Identified exit to Materials 610 | -10/Materials | Discovered exit to Materials (range 14) 778 | -10/Materials | Identified exit to Mines 778 | -10/Materials | Discovered exit to Mines (range 13) 929 | -10/Materials | Entered Mines 1245 | -10/Mines | Found a damaged Exp. Sensor Array with a note attached 1250 | -10/Mines | Found Prototype Device 1345 | -10/Mines | Discovered exit to Materials (range 10) 1352 | -10/Mines | Joined a pair of Derelicts in attacking an 0b10 outpost 1862 | -10/Mines | Deemed a non-threat by the Exiles lab entrance 1905 | -10/Mines | Discovered exit to Materials (range 7) 2065 | -10/Mines | Build established: Scavenger-Mutant 2306 | -10/Mines | Identified exit to Subcaves 2306 | -10/Mines | Discovered exit to Subcaves (range 5) 2312 | -10/Mines | Entered Subcaves 2313 | -10/Subcaves | Approached by a straggling Scientist 2358 | -10/Subcaves | Identified exit to Materials 2358 | -10/Subcaves | Discovered exit to Materials (range 12) 2447 | -10/Subcaves | Identified exit to Recycling 2447 | -10/Subcaves | Discovered exit to Recycling (range 14) 2537 | -10/Subcaves | Shifting Twisted Machinery released Battle Rifle 2780 | -10/Subcaves | Discovered exit to Materials (range 11) 3363 | -10/Subcaves | Visited 4L-MR0's lab 3403 | -10/Subcaves | Found Powered Cannon 3405 | -10/Subcaves | Attached Powered Cannon, gained temporary slot: Power 3712 | -10/Subcaves | Build established: Hacker-Mutant 4164 | -10/Subcaves | A swath of the cavern ceiling suddenly collapsed 4284 | -10/Subcaves | Core integrity fell below 50% 4984 | -10/Subcaves | Ambushed by Subdweller buried in earth 5043 | -10/Subcaves | Ambushed by Subdweller buried in earth 5933 | -10/Subcaves | Learned location of 1 exit from Materials 6631 | -10/Subcaves | Found SUBCON Basin 6781 | -10/Subcaves | Build established: Hauler-Mutant 8155 | -10/Subcaves | Learned location of Zion (-7) 9341 | -10/Subcaves | Ambushed by Subdweller buried in earth 9347 | -10/Subcaves | Core integrity fell below 20% 9407 | -10/Subcaves | Ambushed by Subdweller buried in earth 10933 | -10/Subcaves | Entered Recycling 11023 | -7/Recycling | Destroyed by Y-54 Guardian with Flak Gun Last Messages --------------- 09408_ F5-2T6(R): "GOODGOOD!" 09414_ Destroyed Scrap Shield. 09418_ F5-2T6(R) destroyed. 09435_ Subatomizers dissect the Sub. Machine Gun. 09436_ The unstable cave ceiling collapses. 09439_ 55 Matter crushed. 09488_ The unstable cave ceiling collapses. 09488_ 46 Matter crushed. 09728_ Subatomizers dissect the Beam Rifle, destroying it. 10378_ Subatomizers dissect the Sub. Power Source. LOCATION=RECYCLING GOAL=ESCAPE 10993_ Y-54 Guardian springs to life. 10995_ Lgt. Angular Momentum Engine destroyed. 11012_ Destroyed Lgt. Treads. 11017_ Destroyed Imp. Light Armor Plating. 11023_ Powered Cannon destroyed. Map ----- +----------------------------------------------------+ | ?????????????????????????????????????????????????? | | ?????????????????????????????????????????????????? | | ?????????????????????????????????????????????????? | | ?????????????????????????????????????????????????? | | ?????????????????????????????????????????????????? | | ?????????????????????????????????????????????????? | | ?????????????????????????????????????????????????? | | ?????????????????????????????????????????????????? | | ?????????????????????????????????????????????????? | | ?????????????????????????????????????????????????? | | ?????????????????????????????????????????????????? | | ?????????????????????????????????????????????????? | | ?????????????????????????????????????????????????? | | ?????????????????????????????????????????????????? | | ?????????????????????????????????????????????????? | | ?????????????????????????????????????????????????? | | ?????????????????????????????????????????????????? | | ????????????????????##?###+###???????????????????? | | ????????????????????? ## #???????????????????? | | ?????????????????????? "" #???????????????????? | | ?????????????????????? T #???????????????????? | | ??????????????????????? #???????????????????? | | ???????????????????????? #???????????????????? | | ????????????????????????#Y #????????????????????? | | ????????????????????????# #????????????????????? | | ??????????????###########@ ###??????????????????? | | ??????????????# # ""#??????????????????? | | ??????????????# + Y"#??????????????????? | | ??????????????# # ""#??????????????????? | | ??????????????# # ###??????????????????? | | ??????????????# # #????????????????????? | | ??????????????# # #????????????????????? | | ?????????????# # #????????????????????? | | ?????????????## #####????????????????????? | | ??????????????###########????????????????????????? | | ?????????????????????????????????????????????????? | | ?????????????????????????????????????????????????? | | ?????????????????????????????????????????????????? | | ?????????????????????????????????????????????????? | | ?????????????????????????????????????????????????? | | ?????????????????????????????????????????????????? | | ?????????????????????????????????????????????????? | | ?????????????????????????????????????????????????? | | ?????????????????????????????????????????????????? | | ?????????????????????????????????????????????????? | | ?????????????????????????????????????????????????? | | ?????????????????????????????????????????????????? | | | | | | | +----------------------------------------------------+ Best States ------------- Heat Dissipation 39 Energy Generation 25 Energy Capacity 315 Matter Stores 300 Matter Capacity 300 Sight Range 16 Robot Scan Range 14 Terrain Scan Density 10 Armor Coverage 300 Resistance: KI 35 Resistance: TH 35 Resistance: EX 35 Resistance: EM 35 Resistance: I 35 Resistance: S 35 Resistance: P 35 Evasion (%) 50 Recoil Reduction 2 Offensive Hacking 20 Item Schematics ----------------- None Robot Schematics ------------------ None Fabricated ------------ Nothing Repaired ---------- Nothing Studied --------- None Alien Tech Used ----------------- None Achievements -------------- None Challenges ------------ None Game ------ Seed ShockboltTargetNukerbomber Manual? 0 Play Time 00:26:30 Cumulative 263.5 hours Start 2026.01.07 @ 16:44:15 End 2026.01.07 @ 17:10:24 Sessions 1 Manual Loads 0 Difficulty Explorer Special Mode None Game No. 412 Rogue 0 Adventurer 0 Explorer 412 Win Type - Total 0 Types 0/0/0/0/0/0/0/0/0/0 Lore% 72 Gallery% 69 Achievement% 54 Wizard Run 0 Options --------- Layout 1 ASCII 0 Keyboard 0 Movement Mouse Keybinds 0 Fullscreen 1 Font 24/Smallcaps Map View 50x35 Zoom Use 0% Tactical HUD 1 Map Filters NONE Filters NONE Steam 1 RUN: 7265aa11-58ad-40e2-be9b-783570abcc3a